[Event "Titled Tuesday Blitz March 15 Late 2022"]
[White "Amburgy, Ryan"]
[Black "Nihal Sarin"]
[WhiteFideId "30924820"]
[BlackFideId "25092340"]
[WhiteElo "2066"]
[BlackElo "2705"]
[Result "0-1"]
[Round "02"]
[TimeControl "180+1"]
[Date "2022.03.15"]
[WhiteClock "0:00:06"]
[BlackClock "0:00:44"]

1. d4 {[%clk 0:02:57]}  Nf6 {[%clk 0:02:57]} 2. Nc3 {[%clk 0:02:57]}  d5 {[%clk 0:02:57]} 3. Bf4 {[%clk 0:02:57]}  c5 {[%clk 0:02:57]} 4. e3 {[%clk 0:02:57]}  cxd4 {[%clk 0:02:58]} 5. exd4 {[%clk 0:02:58]}  a6 {[%clk 0:02:58]} 6. Bd3 {[%clk 0:02:58]}  Nc6 {[%clk 0:02:57]} 7. Nce2 {[%clk 0:02:58]}  Bg4 {[%clk 0:02:57]} 8. c3 {[%clk 0:02:58]}  e6 {[%clk 0:02:57]} 9. Qd2 {[%clk 0:02:58]}  Bd6 {[%clk 0:02:57]} 10. h3 {[%clk 0:02:57]}  Bh5 {[%clk 0:02:57]} 11. Bxd6 {[%clk 0:02:57]}  Qxd6 {[%clk 0:02:57]} 12. Nf4 {[%clk 0:02:58]}  Bg6 {[%clk 0:02:57]} 13. Nxg6 {[%clk 0:02:57]}  hxg6 {[%clk 0:02:58]} 14. Nf3 {[%clk 0:02:58]}  O-O-O {[%clk 0:02:57]} 15. O-O-O {[%clk 0:02:53]}  Kb8 {[%clk 0:02:57]} 16. Kb1 {[%clk 0:02:53]}  Rc8 {[%clk 0:02:57]} 17. Rhe1 {[%clk 0:02:49]}  Rc7 {[%clk 0:02:56]} 18. Ne5 {[%clk 0:02:46]}  Ka7 {[%clk 0:02:54]} 19. Qf4 {[%clk 0:02:27]}  Rd8 {[%clk 0:02:39]} 20. g4 {[%clk 0:02:14]}  Re7 {[%clk 0:02:31]} 21. f3 {[%clk 0:02:03]}  Qc7 {[%clk 0:02:10]} 22. Rc1 {[%clk 0:01:51]}  Ka8 {[%clk 0:02:07]} 23. Qe3 {[%clk 0:01:46]}  Nxe5 {[%clk 0:01:59]} 24. dxe5 {[%clk 0:01:40]}  Nd7 {[%clk 0:01:59]} 25. c4 {[%clk 0:01:32]}  d4 {[%clk 0:01:53]} 26. Qe2 {[%clk 0:01:19]}  g5 {[%clk 0:01:49]} 27. Ka1 {[%clk 0:01:15]}  Rh8 {[%clk 0:01:41]} 28. c5 {[%clk 0:00:54]}  Nb8 {[%clk 0:01:40]} 29. Qe4 {[%clk 0:00:48]}  Nc6 {[%clk 0:01:35]} 30. a3 {[%clk 0:00:46]}  Qa5 {[%clk 0:01:35]} 31. Rh1 {[%clk 0:00:39]}  Rd7 {[%clk 0:01:31]} 32. Rc4 {[%clk 0:00:32]}  Rd5 {[%clk 0:01:29]} 33. f4 {[%clk 0:00:32]}  gxf4 {[%clk 0:01:26]} 34. Qxf4 {[%clk 0:00:32]}  Nxe5 {[%clk 0:01:26]} 35. c6 {[%clk 0:00:21]}  bxc6 {[%clk 0:01:10]} 36. Rc2 {[%clk 0:00:12]}  Nxd3 {[%clk 0:01:08]} 37. Qxf7 {[%clk 0:00:12]}  Nc5 {[%clk 0:00:56]} 38. Qxg7 {[%clk 0:00:12]}  Rb8 {[%clk 0:00:56]} 39. Rd1 {[%clk 0:00:04]}  d3 {[%clk 0:00:56]} 40. Rc3 {[%clk 0:00:05]}  d2 {[%clk 0:00:50]} 41. Qh6 {[%clk 0:00:06]}  Qb5 {[%clk 0:00:47]} 42. Rc2 {[%clk 0:00:05]}  Qe2 {[%clk 0:00:43]} 43. Rdxd2 {[%clk 0:00:05]}  Rxd2 {[%clk 0:00:44]} 44. Qxd2 {[%clk 0:00:06]} 0-1


[Site "https://www.chess.com"]

[Event "Titled Tuesday Blitz March 15 Late 2022"]
[White "Ansh M Shah"]
[Black "Srihari L R"]
[WhiteFideId "25033379"]
[BlackFideId "46617116"]
[WhiteElo "1819"]
[BlackElo "2121"]
[Result "0-1"]
[Round "02"]
[TimeControl "180+1"]
[Date "2022.03.16"]
[WhiteClock "0:01:02"]
[BlackClock "0:01:42"]

1. d4 {[%clk 0:02:46]}  Nf6 {[%clk 0:02:57]} 2. c4 {[%clk 0:02:46]}  e6 {[%clk 0:02:57]} 3. Nf3 {[%clk 0:02:47]}  b6 {[%clk 0:02:57]} 4. g3 {[%clk 0:02:47]}  Bb7 {[%clk 0:02:58]} 5. Bg2 {[%clk 0:02:48]}  Be7 {[%clk 0:02:57]} 6. O-O {[%clk 0:02:48]}  O-O {[%clk 0:02:57]} 7. Nbd2 {[%clk 0:02:48]}  d6 {[%clk 0:02:56]} 8. b3 {[%clk 0:02:48]}  Nbd7 {[%clk 0:02:54]} 9. Bb2 {[%clk 0:02:49]}  Re8 {[%clk 0:02:54]} 10. Rc1 {[%clk 0:02:48]}  c5 {[%clk 0:02:51]} 11. Re1 {[%clk 0:02:47]}  cxd4 {[%clk 0:02:48]} 12. Nxd4 {[%clk 0:02:48]}  Bxg2 {[%clk 0:02:48]} 13. Kxg2 {[%clk 0:02:49]}  Qc7 {[%clk 0:02:48]} 14. Kg1 {[%clk 0:02:49]}  Qb7 {[%clk 0:02:47]} 15. N2f3 {[%clk 0:02:48]}  a6 {[%clk 0:02:46]} 16. Qd2 {[%clk 0:02:39]}  b5 {[%clk 0:02:34]} 17. Ba3 {[%clk 0:02:12]}  Nc5 {[%clk 0:02:27]} 18. Red1 {[%clk 0:01:31]}  bxc4 {[%clk 0:02:11]} 19. Rxc4 {[%clk 0:01:30]}  Nce4 {[%clk 0:02:08]} 20. Qb2 {[%clk 0:01:27]}  d5 {[%clk 0:02:07]} 21. Rc2 {[%clk 0:01:26]}  Bxa3 {[%clk 0:02:03]} 22. Qxa3 {[%clk 0:01:27]}  e5 {[%clk 0:02:02]} 23. Nf5 {[%clk 0:01:20]}  d4 {[%clk 0:01:49]} 24. Nd6 {[%clk 0:01:13]}  Qe7 {[%clk 0:01:48]} 25. Nc4 {[%clk 0:01:09]}  Qxa3 {[%clk 0:01:44]} 26. Nxa3 {[%clk 0:01:10]}  Nc3 {[%clk 0:01:43]} 27. e3 {[%clk 0:01:02]}  Nxd1 {[%clk 0:01:42]} 0-1


[Site "https://www.chess.com"]

[Event "Titled Tuesday Blitz March 15 Late 2022"]
[White "Arabidze, Meri"]
[Black "Zotova, Anastasia"]
[WhiteFideId "13604040"]
[BlackFideId "34124907"]
[WhiteElo "2335"]
[BlackElo "1860"]
[Result "1-0"]
[Round "02"]
[TimeControl "180+1"]
[Date "2022.03.16"]
[WhiteClock "0:00:25"]
[BlackClock "0:00:14"]

1. Nf3 {[%clk 0:03:00]}  c6 {[%clk 0:02:56]} 2. b3 {[%clk 0:03:01]}  d5 {[%clk 0:02:57]} 3. Bb2 {[%clk 0:03:01]}  Nf6 {[%clk 0:02:55]} 4. c4 {[%clk 0:03:01]}  g6 {[%clk 0:02:55]} 5. g3 {[%clk 0:03:00]}  Bg7 {[%clk 0:02:55]} 6. Bg2 {[%clk 0:03:00]}  O-O {[%clk 0:02:56]} 7. O-O {[%clk 0:03:00]}  Nbd7 {[%clk 0:02:54]} 8. d3 {[%clk 0:03:00]}  Re8 {[%clk 0:02:54]} 9. Nbd2 {[%clk 0:02:52]}  e5 {[%clk 0:02:52]} 10. e3 {[%clk 0:02:50]}  e4 {[%clk 0:02:40]} 11. dxe4 {[%clk 0:02:46]}  dxe4 {[%clk 0:02:41]} 12. Ng5 {[%clk 0:02:42]}  Nc5 {[%clk 0:02:37]} 13. Bd4 {[%clk 0:02:42]}  Ne6 {[%clk 0:02:23]} 14. Nxe6 {[%clk 0:02:32]}  Rxe6 {[%clk 0:02:21]} 15. Qc2 {[%clk 0:02:22]}  Qe7 {[%clk 0:02:09]} 16. Rad1 {[%clk 0:02:12]}  c5 {[%clk 0:01:40]} 17. Bxf6 {[%clk 0:02:06]}  Bxf6 {[%clk 0:01:39]} 18. Nxe4 {[%clk 0:02:05]}  Bg7 {[%clk 0:01:40]} 19. Nc3 {[%clk 0:02:04]}  Rb8 {[%clk 0:01:33]} 20. Nd5 {[%clk 0:02:04]}  Qg5 {[%clk 0:01:30]} 21. Nc7 {[%clk 0:01:47]}  Re7 {[%clk 0:01:06]} 22. Rd8+ {[%clk 0:01:46]}  Bf8 {[%clk 0:01:07]} 23. Nb5 {[%clk 0:01:21]}  a6 {[%clk 0:00:58]} 24. Nd6 {[%clk 0:01:07]}  Rc7 {[%clk 0:00:52]} 25. Rxc8 {[%clk 0:00:58]}  Rbxc8 {[%clk 0:00:46]} 26. Nxc8 {[%clk 0:00:59]}  Rxc8 {[%clk 0:00:40]} 27. Bxb7 {[%clk 0:01:00]}  Rc7 {[%clk 0:00:39]} 28. Bxa6 {[%clk 0:00:56]}  h5 {[%clk 0:00:38]} 29. h4 {[%clk 0:00:52]}  Qg4 {[%clk 0:00:35]} 30. Bb5 {[%clk 0:00:42]}  Be7 {[%clk 0:00:20]} 31. Qd1 {[%clk 0:00:41]}  Qh3 {[%clk 0:00:21]} 32. Qf3 {[%clk 0:00:35]}  Bxh4 {[%clk 0:00:21]} 33. Qg2 {[%clk 0:00:29]}  Qxg2+ {[%clk 0:00:19]} 34. Kxg2 {[%clk 0:00:30]}  Bf6 {[%clk 0:00:19]} 35. a4 {[%clk 0:00:29]}  Kf8 {[%clk 0:00:20]} 36. a5 {[%clk 0:00:29]}  Ke7 {[%clk 0:00:20]} 37. Rd1 {[%clk 0:00:28]}  Ra7 {[%clk 0:00:19]} 38. a6 {[%clk 0:00:27]}  Kf8 {[%clk 0:00:14]} 39. Rd7 {[%clk 0:00:27]}  Ra8 {[%clk 0:00:14]} 40. a7 {[%clk 0:00:26]}  Kg7 {[%clk 0:00:14]} 41. Bc6 {[%clk 0:00:25]} 1-0


[Site "https://www.chess.com"]

[Event "Titled Tuesday Blitz March 15 Late 2022"]
[White "Araujo Sanchez, Josue"]
[Black "Galperin, Platon"]
[WhiteFideId "6416896"]
[BlackFideId "14165414"]
[WhiteElo "2357"]
[BlackElo "2432"]
[Result "1/2-1/2"]
[Round "02"]
[TimeControl "180+1"]
[Date "2022.03.15"]
[WhiteClock "0:00:11"]
[BlackClock "0:00:02"]

1. e4 {[%clk 0:02:39]}  g6 {[%clk 0:03:00]} 2. d4 {[%clk 0:02:39]}  d6 {[%clk 0:03:01]} 3. Nc3 {[%clk 0:02:39]}  Nf6 {[%clk 0:03:01]} 4. Nf3 {[%clk 0:02:38]}  Bg7 {[%clk 0:03:01]} 5. Be2 {[%clk 0:02:38]}  O-O {[%clk 0:03:02]} 6. O-O {[%clk 0:02:38]}  a6 {[%clk 0:03:03]} 7. a4 {[%clk 0:02:38]}  Nc6 {[%clk 0:03:03]} 8. Be3 {[%clk 0:02:36]}  Re8 {[%clk 0:02:59]} 9. h3 {[%clk 0:02:36]}  e5 {[%clk 0:02:56]} 10. d5 {[%clk 0:02:34]}  Nd4 {[%clk 0:02:55]} 11. Nxd4 {[%clk 0:02:25]}  exd4 {[%clk 0:02:56]} 12. Bxd4 {[%clk 0:02:25]}  Nxe4 {[%clk 0:02:57]} 13. Bxg7 {[%clk 0:02:25]}  Kxg7 {[%clk 0:02:57]} 14. Nxe4 {[%clk 0:02:14]}  Rxe4 {[%clk 0:02:58]} 15. Bf3 {[%clk 0:02:14]}  Rf4 {[%clk 0:02:57]} 16. g3 {[%clk 0:02:06]}  Rf5 {[%clk 0:02:56]} 17. Bg2 {[%clk 0:02:04]}  Qf6 {[%clk 0:02:54]} 18. c3 {[%clk 0:02:02]}  Bd7 {[%clk 0:02:51]} 19. Qc2 {[%clk 0:01:54]}  h5 {[%clk 0:02:49]} 20. Rfe1 {[%clk 0:01:51]}  h4 {[%clk 0:02:48]} 21. g4 {[%clk 0:01:51]}  Rf4 {[%clk 0:02:46]} 22. Re3 {[%clk 0:01:50]}  Re8 {[%clk 0:02:43]} 23. Rxe8 {[%clk 0:01:46]}  Bxe8 {[%clk 0:02:44]} 24. b3 {[%clk 0:01:47]}  Bd7 {[%clk 0:02:33]} 25. Re1 {[%clk 0:01:42]}  Qg5 {[%clk 0:02:33]} 26. Qd3 {[%clk 0:01:38]}  Qf6 {[%clk 0:02:08]} 27. Re2 {[%clk 0:01:37]}  b5 {[%clk 0:02:04]} 28. axb5 {[%clk 0:01:36]}  axb5 {[%clk 0:02:03]} 29. Qe3 {[%clk 0:01:32]}  Kf8 {[%clk 0:01:58]} 30. Ra2 {[%clk 0:01:26]}  b4 {[%clk 0:01:10]} 31. c4 {[%clk 0:01:20]}  Qd4 {[%clk 0:01:08]} 32. Ra8+ {[%clk 0:01:09]}  Kg7 {[%clk 0:01:06]} 33. Qxd4+ {[%clk 0:00:46]}  Rxd4 {[%clk 0:01:07]} 34. Rb8 {[%clk 0:00:46]}  Rd1+ {[%clk 0:01:02]} 35. Bf1 {[%clk 0:00:46]}  c5 {[%clk 0:00:34]} 36. Rd8 {[%clk 0:00:34]}  Bxg4 {[%clk 0:00:34]} 37. hxg4 {[%clk 0:00:33]}  h3 {[%clk 0:00:34]} 38. Rxd6 {[%clk 0:00:32]}  h2+ {[%clk 0:00:34]} 39. Kxh2 {[%clk 0:00:32]}  Rxf1 {[%clk 0:00:35]} 40. Rc6 {[%clk 0:00:33]}  Rxf2+ {[%clk 0:00:34]} 41. Kg3 {[%clk 0:00:33]}  Rb2 {[%clk 0:00:32]} 42. Rxc5 {[%clk 0:00:34]}  Rxb3+ {[%clk 0:00:32]} 43. Kf4 {[%clk 0:00:34]}  Rd3 {[%clk 0:00:28]} 44. Ke4 {[%clk 0:00:34]}  Rg3 {[%clk 0:00:27]} 45. Rb5 {[%clk 0:00:25]}  Rxg4+ {[%clk 0:00:26]} 46. Kd3 {[%clk 0:00:25]}  Rg3+ {[%clk 0:00:26]} 47. Kd4 {[%clk 0:00:25]}  b3 {[%clk 0:00:23]} 48. d6 {[%clk 0:00:25]}  Kf6 {[%clk 0:00:23]} 49. Rb7 {[%clk 0:00:20]}  Rg4+ {[%clk 0:00:09]} 50. Kd5 {[%clk 0:00:20]}  Rg3 {[%clk 0:00:07]} 51. c5 {[%clk 0:00:18]}  g5 {[%clk 0:00:05]} 52. Rb4 {[%clk 0:00:16]}  g4 {[%clk 0:00:05]} 53. Rf4+ {[%clk 0:00:15]}  Kg5 {[%clk 0:00:04]} 54. Rxf7 {[%clk 0:00:12]}  Rd3+ {[%clk 0:00:02]} 55. Kc4 {[%clk 0:00:12]}  b2 {[%clk 0:00:02]} 56. Rg7+ {[%clk 0:00:12]}  Kf6 {[%clk 0:00:01]} 57. Rb7 {[%clk 0:00:12]}  Rd2 {[%clk 0:00:02]} 58. Kc3 {[%clk 0:00:12]}  Rd5 {[%clk 0:00:02]} 59. Kc4 {[%clk 0:00:12]}  Rd2 {[%clk 0:00:02]} 60. Kc3 {[%clk 0:00:11]}  Rd5 {[%clk 0:00:02]} 61. Kc4 {[%clk 0:00:11]}  Rd2 {[%clk 0:00:02]} 1/2-1/2


[Site "https://www.chess.com"]

[Event "Titled Tuesday Blitz March 15 Late 2022"]
[White "Beerdsen, Thomas"]
[Black "Lewicki, Miroslaw"]
[WhiteFideId "1030108"]
[BlackFideId "1113380"]
[WhiteElo "2585"]
[BlackElo "2283"]
[Result "1-0"]
[Round "02"]
[TimeControl "180+1"]
[Date "2022.03.16"]
[WhiteClock "0:00:05"]
[BlackClock "0:00:03"]

1. e4 {[%clk 0:02:43]}  c5 {[%clk 0:02:59]} 2. Nf3 {[%clk 0:02:43]}  d6 {[%clk 0:02:59]} 3. d4 {[%clk 0:02:44]}  cxd4 {[%clk 0:03:00]} 4. Nxd4 {[%clk 0:02:44]}  Nf6 {[%clk 0:03:00]} 5. Nc3 {[%clk 0:02:45]}  a6 {[%clk 0:03:01]} 6. a3 {[%clk 0:02:46]}  Qc7 {[%clk 0:02:59]} 7. Rg1 {[%clk 0:02:42]}  b5 {[%clk 0:02:55]} 8. g4 {[%clk 0:02:42]}  Bb7 {[%clk 0:02:55]} 9. Qe2 {[%clk 0:02:39]}  h6 {[%clk 0:02:52]} 10. h4 {[%clk 0:02:38]}  e6 {[%clk 0:02:51]} 11. g5 {[%clk 0:02:34]}  hxg5 {[%clk 0:02:52]} 12. hxg5 {[%clk 0:02:35]}  Nfd7 {[%clk 0:02:52]} 13. g6 {[%clk 0:02:35]}  Ne5 {[%clk 0:02:49]} 14. f4 {[%clk 0:02:26]}  Nbc6 {[%clk 0:02:35]} 15. Ndxb5 {[%clk 0:02:08]}  axb5 {[%clk 0:02:36]} 16. Nxb5 {[%clk 0:02:09]}  Qa5+ {[%clk 0:02:27]} 17. Bd2 {[%clk 0:02:02]}  Qb6 {[%clk 0:02:26]} 18. Be3 {[%clk 0:02:00]}  Qa5+ {[%clk 0:02:26]} 19. Bd2 {[%clk 0:01:39]}  Qb6 {[%clk 0:02:25]} 20. gxf7+ {[%clk 0:01:31]}  Nxf7 {[%clk 0:01:56]} 21. Rg6 {[%clk 0:01:29]}  Ncd8 {[%clk 0:01:34]} 22. Be3 {[%clk 0:01:13]}  Qc6 {[%clk 0:01:28]} 23. Nc3 {[%clk 0:01:00]}  Ba6 {[%clk 0:01:23]} 24. Qg2 {[%clk 0:00:58]}  Bxf1 {[%clk 0:01:22]} 25. Kxf1 {[%clk 0:00:58]}  Rb8 {[%clk 0:01:19]} 26. Rb1 {[%clk 0:00:42]}  Qc4+ {[%clk 0:01:03]} 27. Kg1 {[%clk 0:00:39]}  Rh5 {[%clk 0:00:47]} 28. f5 {[%clk 0:00:21]}  Ne5 {[%clk 0:00:37]} 29. Rg3 {[%clk 0:00:20]}  exf5 {[%clk 0:00:29]} 30. exf5 {[%clk 0:00:21]}  Rxf5 {[%clk 0:00:29]} 31. Nd5 {[%clk 0:00:22]}  Nf3+ {[%clk 0:00:15]} 32. Rxf3 {[%clk 0:00:22]}  Qxd5 {[%clk 0:00:15]} 33. Qg6+ {[%clk 0:00:19]}  Rf7 {[%clk 0:00:12]} 34. Rbf1 {[%clk 0:00:18]}  Rxb2 {[%clk 0:00:09]} 35. Bg5 {[%clk 0:00:16]}  Be7 {[%clk 0:00:04]} 36. Re3 {[%clk 0:00:13]}  Rb7 {[%clk 0:00:02]} 37. Rfe1 {[%clk 0:00:08]}  Kf8 {[%clk 0:00:03]} 38. Qh5 {[%clk 0:00:05]}  Qxg5+ {[%clk 0:00:03]} 39. Qxg5 {[%clk 0:00:05]} 1-0


[Site "https://www.chess.com"]

[Event "Titled Tuesday Blitz March 15 Late 2022"]
[White "Bellissimo, Joseph F."]
[Black "Ladan, Nicholas"]
[WhiteFideId "2609843"]
[BlackFideId "30918855"]
[WhiteElo "2061"]
[BlackElo "2167"]
[Result "1-0"]
[Round "02"]
[TimeControl "180+1"]
[Date "2022.03.16"]
[WhiteClock "0:01:09"]
[BlackClock "0:00:04"]

1. e4 {[%clk 0:02:57]}  e5 {[%clk 0:02:59]} 2. Nf3 {[%clk 0:02:54]}  Nc6 {[%clk 0:02:59]} 3. Bc4 {[%clk 0:02:52]}  Nf6 {[%clk 0:02:59]} 4. d4 {[%clk 0:02:51]}  exd4 {[%clk 0:02:55]} 5. e5 {[%clk 0:02:52]}  d5 {[%clk 0:02:54]} 6. Bb5 {[%clk 0:02:52]}  Ne4 {[%clk 0:02:51]} 7. Nxd4 {[%clk 0:02:50]}  Bc5 {[%clk 0:02:49]} 8. Bxc6+ {[%clk 0:02:47]}  bxc6 {[%clk 0:02:47]} 9. O-O {[%clk 0:02:48]}  O-O {[%clk 0:02:42]} 10. f3 {[%clk 0:02:47]}  Ng5 {[%clk 0:02:35]} 11. Be3 {[%clk 0:02:48]}  Ne6 {[%clk 0:02:30]} 12. f4 {[%clk 0:02:41]}  Ba6 {[%clk 0:02:28]} 13. Rf2 {[%clk 0:02:38]}  Qe8 {[%clk 0:02:20]} 14. f5 {[%clk 0:02:30]}  Nxd4 {[%clk 0:02:16]} 15. Bxd4 {[%clk 0:02:31]}  Bxd4 {[%clk 0:02:02]} 16. Qxd4 {[%clk 0:02:32]}  Qb8 {[%clk 0:01:59]} 17. f6 {[%clk 0:02:29]}  g6 {[%clk 0:01:39]} 18. Qh4 {[%clk 0:02:27]}  h5 {[%clk 0:01:20]} 19. Qg5 {[%clk 0:02:24]}  Kh7 {[%clk 0:01:19]} 20. Nc3 {[%clk 0:02:18]}  Qxb2 {[%clk 0:01:12]} 21. Rc1 {[%clk 0:01:53]}  Qxc3 {[%clk 0:00:56]} 22. Rf3 {[%clk 0:01:53]}  Qd4+ {[%clk 0:00:55]} 23. Kh1 {[%clk 0:01:52]}  Rae8 {[%clk 0:00:54]} 24. Re1 {[%clk 0:01:49]}  Re6 {[%clk 0:00:52]} 25. Rh3 {[%clk 0:01:47]}  Be2 {[%clk 0:00:47]} 26. c3 {[%clk 0:01:44]}  Qg4 {[%clk 0:00:40]} 27. Qe3 {[%clk 0:01:41]}  Bc4 {[%clk 0:00:32]} 28. Rg3 {[%clk 0:01:34]}  Qf5 {[%clk 0:00:14]} 29. Rg5 {[%clk 0:01:33]}  Qd3 {[%clk 0:00:13]} 30. Qf4 {[%clk 0:01:28]}  Rfe8 {[%clk 0:00:13]} 31. h3 {[%clk 0:01:17]}  Qxc3 {[%clk 0:00:03]} 32. Re3 {[%clk 0:01:14]}  Qd2 {[%clk 0:00:03]} 33. Qg3 {[%clk 0:01:12]}  Qc1+ {[%clk 0:00:04]} 34. Kh2 {[%clk 0:01:11]}  Qb2 {[%clk 0:00:04]} 35. Rxh5+ {[%clk 0:01:11]}  Kg8 {[%clk 0:00:03]} 36. Qh4 {[%clk 0:01:09]}  gxh5 {[%clk 0:00:04]} 37. Qg5+ {[%clk 0:01:09]} 1-0


[Site "https://www.chess.com"]

[Event "Titled Tuesday Blitz March 15 Late 2022"]
[White "Bluebaum, Matthias"]
[Black "Chiu, Isaac"]
[WhiteFideId "24651516"]
[BlackFideId "30900654"]
[WhiteElo "2550"]
[BlackElo "2117"]
[Result "1-0"]
[Round "02"]
[TimeControl "180+1"]
[Date "2022.03.15"]
[WhiteClock "0:01:50"]
[BlackClock "0:01:59"]

1. b3 {[%clk 0:03:00]}  e5 {[%clk 0:02:57]} 2. Bb2 {[%clk 0:03:01]}  Nc6 {[%clk 0:02:57]} 3. e3 {[%clk 0:03:02]}  Nf6 {[%clk 0:02:57]} 4. Nf3 {[%clk 0:03:02]}  e4 {[%clk 0:02:55]} 5. Nd4 {[%clk 0:03:03]}  Nxd4 {[%clk 0:02:48]} 6. Bxd4 {[%clk 0:03:04]}  d5 {[%clk 0:02:48]} 7. c4 {[%clk 0:03:04]}  c5 {[%clk 0:02:47]} 8. Bxf6 {[%clk 0:03:03]}  Qxf6 {[%clk 0:02:48]} 9. Nc3 {[%clk 0:03:04]}  dxc4 {[%clk 0:02:45]} 10. Bxc4 {[%clk 0:03:01]}  Qg6 {[%clk 0:02:44]} 11. Bb5+ {[%clk 0:02:58]}  Bd7 {[%clk 0:02:35]} 12. Bxd7+ {[%clk 0:02:57]}  Kxd7 {[%clk 0:02:36]} 13. O-O {[%clk 0:02:56]}  Bd6 {[%clk 0:02:28]} 14. f3 {[%clk 0:02:54]}  exf3 {[%clk 0:02:26]} 15. Qxf3 {[%clk 0:02:55]}  b6 {[%clk 0:02:16]} 16. Nb5 {[%clk 0:02:03]}  f6 {[%clk 0:02:00]} 17. Qd5 {[%clk 0:01:53]}  f5 {[%clk 0:02:00]} 18. Rxf5 {[%clk 0:01:52]}  Rhe8 {[%clk 0:02:00]} 19. Nxd6 {[%clk 0:01:50]}  Qxd6 {[%clk 0:01:59]} 20. Rf7+ {[%clk 0:01:50]} 1-0


[Site "https://www.chess.com"]

[Event "Titled Tuesday Blitz March 15 Late 2022"]
[White "Bortnyk, Olexandr"]
[Black "Kucuksari, Kaan"]
[WhiteFideId "14120828"]
[BlackFideId "6380166"]
[WhiteElo "2723"]
[BlackElo "2305"]
[Result "0-1"]
[Round "02"]
[TimeControl "180+1"]
[Date "2022.03.15"]
[WhiteClock "0:00:02"]
[BlackClock "0:00:10"]

1. e4 {[%clk 0:03:00]}  c5 {[%clk 0:02:57]} 2. c3 {[%clk 0:02:59]}  d5 {[%clk 0:02:56]} 3. exd5 {[%clk 0:03:00]}  Qxd5 {[%clk 0:02:56]} 4. d4 {[%clk 0:03:00]}  g6 {[%clk 0:02:52]} 5. Be3 {[%clk 0:03:00]}  cxd4 {[%clk 0:02:44]} 6. cxd4 {[%clk 0:03:01]}  Nf6 {[%clk 0:02:36]} 7. Nf3 {[%clk 0:02:47]}  Bg7 {[%clk 0:02:34]} 8. Nc3 {[%clk 0:02:47]}  Qa5 {[%clk 0:02:32]} 9. Bc4 {[%clk 0:02:44]}  O-O {[%clk 0:02:31]} 10. O-O {[%clk 0:02:43]}  Nbd7 {[%clk 0:02:19]} 11. h3 {[%clk 0:02:27]}  Nb6 {[%clk 0:02:18]} 12. Bb3 {[%clk 0:02:27]}  Nbd5 {[%clk 0:02:14]} 13. Bd2 {[%clk 0:02:25]}  Qd8 {[%clk 0:02:08]} 14. Re1 {[%clk 0:02:25]}  b6 {[%clk 0:02:03]} 15. Ne5 {[%clk 0:02:18]}  Bb7 {[%clk 0:02:01]} 16. Qf3 {[%clk 0:02:17]}  Rc8 {[%clk 0:01:47]} 17. Bg5 {[%clk 0:02:04]}  Rc7 {[%clk 0:01:21]} 18. Qd3 {[%clk 0:00:49]}  Nb4 {[%clk 0:01:08]} 19. Qg3 {[%clk 0:00:47]}  Nbd5 {[%clk 0:00:48]} 20. Nb5 {[%clk 0:00:47]}  Rc8 {[%clk 0:00:42]} 21. Nxa7 {[%clk 0:00:47]}  Ra8 {[%clk 0:00:42]} 22. Nb5 {[%clk 0:00:47]}  e6 {[%clk 0:00:37]} 23. Ng4 {[%clk 0:00:41]}  Qd7 {[%clk 0:00:31]} 24. Nc3 {[%clk 0:00:17]}  Nh5 {[%clk 0:00:28]} 25. Qh4 {[%clk 0:00:17]}  Ndf4 {[%clk 0:00:21]} 26. Bxf4 {[%clk 0:00:11]}  Nxf4 {[%clk 0:00:22]} 27. Ne4 {[%clk 0:00:10]}  f5 {[%clk 0:00:17]} 28. Ngf6+ {[%clk 0:00:10]}  Bxf6 {[%clk 0:00:17]} 29. Nxf6+ {[%clk 0:00:11]}  Rxf6 {[%clk 0:00:17]} 30. Qxf6 {[%clk 0:00:10]}  Bd5 {[%clk 0:00:13]} 31. Qe5 {[%clk 0:00:05]}  Nd3 {[%clk 0:00:13]} 32. Bxd5 {[%clk 0:00:03]}  Nxe5 {[%clk 0:00:12]} 33. Bxa8 {[%clk 0:00:03]}  Qxd4 {[%clk 0:00:13]} 34. b3 {[%clk 0:00:02]}  Nd3 {[%clk 0:00:12]} 35. Red1 {[%clk 0:00:02]}  e5 {[%clk 0:00:12]} 36. Kh1 {[%clk 0:00:01]}  Nxf2+ {[%clk 0:00:12]} 37. Kh2 {[%clk 0:00:02]}  Nxd1 {[%clk 0:00:13]} 38. Rb1 {[%clk 0:00:02]}  Qf4+ {[%clk 0:00:13]} 39. Kh1 {[%clk 0:00:02]}  Nf2+ {[%clk 0:00:11]} 40. Kg1 {[%clk 0:00:02]}  Ne4 {[%clk 0:00:11]} 41. Bd5+ {[%clk 0:00:02]}  Kg7 {[%clk 0:00:09]} 42. Rf1 {[%clk 0:00:02]}  Qe3+ {[%clk 0:00:10]} 43. Kh2 {[%clk 0:00:03]}  Qg3+ {[%clk 0:00:10]} 44. Kg1 {[%clk 0:00:04]}  Nd2 {[%clk 0:00:10]} 45. Rd1 {[%clk 0:00:03]}  Qe3+ {[%clk 0:00:10]} 46. Kh1 {[%clk 0:00:03]}  f4 {[%clk 0:00:11]} 47. a4 {[%clk 0:00:03]}  g5 {[%clk 0:00:12]} 48. b4 {[%clk 0:00:03]}  g4 {[%clk 0:00:12]} 49. hxg4 {[%clk 0:00:03]}  f3 {[%clk 0:00:12]} 50. gxf3 {[%clk 0:00:03]}  Nxf3 {[%clk 0:00:13]} 51. Rf1 {[%clk 0:00:03]}  Nd4 {[%clk 0:00:12]} 52. Rf7+ {[%clk 0:00:03]}  Kg6 {[%clk 0:00:13]} 53. Kg2 {[%clk 0:00:02]}  e4 {[%clk 0:00:12]} 54. Re7 {[%clk 0:00:02]}  Qf3+ {[%clk 0:00:12]} 55. Kh2 {[%clk 0:00:02]}  Qf4+ {[%clk 0:00:10]} 56. Kh3 {[%clk 0:00:03]}  Qf1+ {[%clk 0:00:10]} 57. Kg3 {[%clk 0:00:02]}  Ne2+ {[%clk 0:00:09]} 58. Kh2 {[%clk 0:00:01]}  Qf2+ {[%clk 0:00:09]} 59. Kh3 {[%clk 0:00:02]}  Qg3# {[%clk 0:00:10]} 0-1


[Site "https://www.chess.com"]